fUSD/lending_fUSD_20260318
["ID","MTS","AMOUNT","RATE_DAILY","PERIOD"]
[408527775,1773831756174,173122.63471504,9.5e-05,3]
[408527781,1773831857202,-150.0,0.00015481,2]
[408527789,1773832000132,-264.1,0.00015935,2]
[408527790,1773832000153,-166.66,0.00015936,2]
[408527791,1773832000175,-793.77598042,0.00016,2]
[408527792,1773832000195,-1947.8993412,0.00016,2]
[408527793,1773832000216,-334.44077297,0.00016,2]
[408527794,1773832096507,2736.53,0.00030137,120]
[408527795,1773832109145,500.0,0.0003013,120]
[408527797,1773832166118,300.0,0.00030137,120]
[408527812,1773832232378,-1200.0,0.000159,5]
[408527813,1773832232388,-1433.18103814,0.00016,2]
[408527814,1773832232399,-942.92719153,0.00016,2]
[408527833,1773832238266,-751.89539911,0.00016,2]
[408527834,1773832238278,-213.17558532,0.00016,2]
[408527835,1773832238288,-2128.17687136,0.00016,2]
[408527836,1773832238297,-471.75991887,0.00016,2]
[408527837,1773832238307,-1083.83598846,0.0001608,2]
[408527838,1773832238375,-91082.79500379,0.0001608,2]
[408527839,1773832238386,-188489.26120775,0.0001608,2]
[408527840,1773832238396,-2500.0,0.00016081,2]
[408527841,1773832238406,-1579.3575,0.00016081,2]
[408527842,1773832238415,-1646.75209742,0.00016106,2]
[408527843,1773832238426,-963.85574981,0.00016106,2]
[408527844,1773832238437,-620.0,0.00016158,2]
[408527845,1773832238447,-3512.0,0.00016158,2]
[408527846,1773832238457,-1344.0,0.00016158,2]
[408527847,1773832238469,-1044.0,0.00016158,2]
[408527848,1773832238480,-1260.0,0.00016158,2]
[408527849,1773832238490,-200.0,0.00016171,2]
[408527850,1773832238499,-500.0,0.00016173,2]
[408527851,1773832238509,-500.0,0.00016173,2]
[408527852,1773832238519,-500.7546073,0.00016173,2]
[408527853,1773832238528,-500.0,0.00016173,2]
[408527855,1773832238537,-500.0,0.00016173,2]
[408527857,1773832238547,-500.0,0.00016173,2]
[408527858,1773832238557,-500.0,0.00016173,2]
[408527859,1773832238569,-501.38646377,0.00016173,2]
[408527860,1773832238579,-500.0,0.00016173,2]
[408527861,1773832238588,-500.0,0.00016173,2]
[408527863,1773832238598,-504.25347756,0.0001618,2]
[408527864,1773832238608,-167.94315491,0.0001618,2]
[408527865,1773832238617,-500.0,0.0001618,2]
[408527866,1773832238626,-500.0,0.0001618,2]
[408527867,1773832238635,-500.0,0.0001618,2]
[408527869,1773832238647,-500.0,0.0001618,2]
[408527871,1773832238656,-500.0,0.0001618,2]
[408527873,1773832238665,-500.0,0.0001618,2]
[408527875,1773832238674,-500.0,0.0001618,2]
[408527877,1773832238683,-500.0,0.0001618,2]
[408527879,1773832238692,-500.0,0.0001618,2]
[408527881,1773832238702,-500.0,0.0001618,2]
[408527883,1773832238711,-500.0,0.0001618,2]
[408527885,1773832238721,-500.0,0.0001618,2]
[408527887,1773832238730,-500.0,0.0001618,2]
[408527889,1773832238741,-500.0,0.0001618,2]
[408527891,1773832238750,-500.0,0.0001618,2]
[408527893,1773832238760,-500.0,0.0001618,2]
[408527895,1773832238769,-500.0,0.0001618,2]
[408527897,1773832238778,-500.0,0.0001618,2]
[408527899,1773832238787,-500.0,0.0001618,2]
[408527901,1773832238797,-500.0,0.0001618,2]
[408527903,1773832238807,-500.0,0.0001618,2]
[408527905,1773832238816,-500.0,0.0001618,2]
[408527907,1773832238826,-500.0,0.0001618,2]
[408527909,1773832238835,-500.0,0.0001618,2]
[408527911,1773832238845,-500.0,0.0001618,2]
[408527913,1773832238855,-500.0,0.0001618,2]
[408527915,1773832238864,-500.0,0.0001618,2]
[408527917,1773832238873,-286.48839767,0.0001618,2]
[408527958,1773832240989,-213.51160233,0.0001618,2]
[408527959,1773832241000,-408.35738581,0.0001618,2]
[408527960,1773832241012,-91.64261419,0.0001618,2]
[408527961,1773832241022,-500.0,0.0001618,2]
[408527962,1773832241031,-500.0,0.0001618,2]
[408527963,1773832241040,-301.56111882,0.0001618,2]
[408527964,1773832241065,-198.43888118,0.0001618,2]
[408527965,1773832241074,-500.0,0.0001618,2]
[408527966,1773832241083,-500.0,0.0001618,2]
[408527967,1773832241093,-260.46769177,0.0001618,2]
[408527968,1773832241306,-239.53230823,0.0001618,2]
[408527969,1773832241317,-329.36769177,0.0001618,2]
[408527982,1773832243357,-170.63230823,0.0001618,2]
[408527983,1773832243367,-500.0,0.0001618,2]
[408527984,1773832243377,-500.0,0.0001618,2]
[408527985,1773832243387,-500.0,0.0001618,2]
[408527986,1773832243397,-500.0,0.0001618,2]
[408527987,1773832243407,-500.0,0.0001618,2]
[408527988,1773832243417,-500.0,0.0001618,2]
[408527989,1773832243428,-589.34864794,0.0001618,2]
[408527990,1773832243438,-500.0,0.0001618,2]
[408527991,1773832243449,-500.0,0.0001618,2]
[408527992,1773832243459,-238.69845923,0.0001618,2]
[408527993,1773832243481,-261.30154077,0.0001618,2]
[408527994,1773832243491,-107.82845923,0.0001618,2]
[408527995,1773832243504,-329.09663172,0.0001618,2]
[408527996,1773832243516,-63.07490905,0.0001618,2]
[408527997,1773832243526,-200.0,0.0001618,2]
[408527998,1773832243537,-500.0,0.0001618,2]
[408527999,1773832243548,-500.0,0.0001618,2]
[408528000,1773832243561,-500.0,0.0001618,2]
[408528001,1773832243571,-248.14099688,0.0001618,2]
[408528002,1773832243580,-313.06339071,0.0001618,2]
[408528003,1773832243590,-500.0,0.0001618,2]
[408528004,1773832243603,-2313.54,0.0001618,2]
[408528005,1773832243612,-150.0,0.0001618,2]
[408528006,1773832243622,-5000.0,0.00016206,2]
[408528007,1773832243635,-166.66,0.00016271,2]
[408528008,1773832243646,-1646.75209736,0.00016305,2]
[408528009,1773832243656,-963.85574978,0.00016305,2]
[408528010,1773832243666,-209.05,0.00016306,2]
[408528011,1773832243676,-1457.58607014,0.00016316,2]
[408528012,1773832243686,-979.16666667,0.00016328,2]
[408528013,1773832243695,-1012.36,0.00016372,2]
[408528014,1773832243705,-500.0,0.00016373,2]
[408528015,1773832243714,-1215.0,0.00016392,2]
[408528016,1773832243723,-923.0,0.00016392,2]
[408528017,1773832243734,-6005.0,0.00016439,2]
[408528018,1773832243745,-2465.0,0.00016439,2]
[408528019,1773832243754,-414.0,0.00016439,2]
[408528020,1773832243764,-184.459,0.00016449,2]
[408528021,1773832243774,-150.0,0.00016449,2]
[408528022,1773832243783,-271.0,0.00016449,2]
[408528024,1773832243792,-268.1075023,0.00016495,2]
[408528026,1773832243801,-500.0,0.00016495,2]
[408528028,1773832243810,-1328.27659266,0.00016495,2]
[408528029,1773832243819,-151.0,0.00016495,2]
[408528030,1773832243828,-1646.75209736,0.00016505,2]
[408528031,1773832243838,-963.85574978,0.00016505,2]
[408528032,1773832243847,-163.32,0.00016514,2]
[408528033,1773832243858,-155.0,0.00016548,2]
[408528034,1773832243868,-500.0,0.0001655,2]
[408528035,1773832243879,-197.30699258,0.0001655,2]
[408528036,1773832243889,-500.0,0.00016605,2]
[408528037,1773832243899,-166.66,0.00016607,2]
[408528038,1773832243908,-1646.75209736,0.00016704,2]
[408528039,1773832243918,-963.85574978,0.00016704,2]
[408528040,1773832243927,-1000.0,0.00016721,2]
[408528041,1773832243936,-504.6585806,0.00016721,2]
[408528043,1773832243946,-500.0,0.00016721,2]
[408528045,1773832243955,-196.85238366,0.00016721,2]
[408528046,1773832243966,-1012.36,0.00016782,2]
[408528047,1773832243975,-385.1,0.00016847,2]
[408528048,1773832243985,-1646.75209736,0.00016903,2]
[408528049,1773832244163,-963.85574978,0.00016903,2]
[408528050,1773832244186,-162.9233252,0.00016906,2]
[408528051,1773832244195,-500.0,0.00016906,2]
[408528052,1773832244204,-577.30987879,0.00016906,2]
[408528053,1773832244214,-308.13729717,0.00016906,2]
[408528054,1773832244223,-1000.0,0.00016921,2]
[408528055,1773832244234,-166.66,0.00016942,2]
[408528056,1773832244244,-209.05,0.00017083,2]
[408528057,1773832244254,-1646.75209736,0.00017103,2]
[408528058,1773832244263,-963.85574978,0.00017103,2]
[408528059,1773832244273,-1012.36,0.00017191,2]
[408528060,1773832244282,-2500.0,0.000172,6]
[408528061,1773832244292,-166.66,0.00017278,2]
[408528062,1773832244301,-2522.3237547,0.00017299,2]
[408528063,1773832244309,-3800.0,0.000173,6]
[408528064,1773832244319,-1646.75209736,0.00017302,2]
[408528065,1773832244327,-963.85574978,0.00017302,2]
[408528066,1773832244337,-1896.0,0.00017321,5]
[408528067,1773832244347,-500.0,0.00017351,2]
[408528068,1773832244357,-500.0,0.00017351,2]
[408528069,1773832244367,-500.0,0.00017351,2]
[408528070,1773832244377,-150.0,0.00017351,2]
[408528071,1773832244388,-150.56445432,0.00017351,2]
[408528072,1773832244397,-155.62552517,0.00017351,2]
[408528073,1773832244407,-1592.078,0.00017373,2]
[408528074,1773832244417,-1323.79,0.00017377,2]
[408528075,1773832244427,-177063.48484368,0.000174,2]
[408528076,1773832244453,-454.1495472,0.000174,2]
[408528077,1773832244532,-389.65289942,0.000174,2]
[408528080,1773832246183,-806.51987835,0.000174,2]
[408528081,1773832246194,-4418.88196997,0.000174,2]
[408528082,1773832246239,-155273.37932789,0.000174,2]
[408528083,1773832246549,-3687.49999999,0.000174,2]
[408528084,1773832246561,-11431.58155325,0.000174,2]
[408528085,1773832246575,-720.69661148,0.000174,2]
[408528086,1773832246603,-28028.11980498,0.000174,2]
[408528087,1773832246614,-1180.128,0.000174,2]
[408528094,1773832373967,-1614.13360049,0.00015981,2]
[408528097,1773832427973,2070.8299583,0.00015981,2]
[408528098,1773832433839,494.02562928,0.00015981,2]
[408528100,1773832485097,150.02277549,0.00016057,2]
[408528101,1773832501230,1200.0,0.00016057,2]
[408528103,1773832519525,500.0,0.00016057,2]
[408528104,1773832519579,500.0,0.00016057,2]
[408528105,1773832519632,478.93486479,0.00016057,2]
[408528106,1773832549224,500.0,0.00016057,2]
[408528107,1773832559265,500.0,0.00016057,2]
[408528109,1773832569530,377.92957116,0.00016057,2]
[408528110,1773832569560,122.07042884,0.00016057,2]
[408528111,1773832584951,500.0,0.00016057,2]
[408528112,1773832604841,500.0,0.00016057,2]
[408528113,1773832606620,-510.7366013,0.00016058,2]
[408528114,1773832608740,-5000.01,0.00016058,2]
[408528115,1773832611919,-5000.01,0.00016058,2]
[408528116,1773832614865,-5000.01,0.00016058,2]
[408528117,1773832617956,-5000.01,0.00016058,2]
[408528118,1773832620082,500.0,0.00016057,2]
[408528119,1773832620146,500.0,0.00016057,2]
[408528120,1773832620928,-5000.01,0.00016058,2]
[408528121,1773832624017,-5000.01,0.00016058,2]
[408528122,1773832627008,-5000.01,0.00016058,2]
[408528123,1773832629989,-5000.01,0.00016058,2]
[408528124,1773832633036,-5000.01,0.00016058,2]
[408528125,1773832636219,-500.0,0.00016057,2]
[408528126,1773832636268,-4000.01,0.00016058,2]
[408528127,1773832639264,-5000.01,0.00016058,2]
[408528128,1773832642182,-5000.01,0.00016058,2]
[408528129,1773832645314,-5000.01,0.00016058,2]
[408528130,1773832648301,-5000.01,0.00016058,2]
[408528131,1773832651400,-500.0,0.00016057,2]
[408528132,1773832651435,-4000.01,0.00016058,2]
[408528133,1773832651525,500.0,0.00030137,120]
[408528134,1773832654369,-5000.01,0.00016058,2]
[408528135,1773832657488,-5000.01,0.00016058,2]
[408528136,1773832658371,500.0,0.00030137,120]
[408528137,1773832660415,-5000.01,0.00016058,2]
[408528138,1773832663446,-5000.01,0.00016058,2]
[408528139,1773832665404,500.0,0.00030137,120]
[408528140,1773832666476,-500.0,0.00016057,2]
[408528141,1773832666509,-4000.01,0.00016058,2]
[408528142,1773832669600,-5000.01,0.00016058,2]
[408528143,1773832671690,500.0,0.00030137,120]
[408528144,1773832672909,-5000.01,0.00016058,2]
[408528145,1773832677862,500.0,0.00030137,120]
[408528146,1773832678881,-5000.01,0.00016058,2]
[408528147,1773832685201,-5000.01,0.00016058,2]
[408528148,1773832702628,1000.0,0.00030137,120]
[408528149,1773832708698,1000.0,0.00030137,120]
[408528150,1773832734262,1000.0,0.00030137,120]
[408528151,1773832740866,1000.0,0.00030137,120]
[408528152,1773832742812,566.66303,0.0003013,120]
[408528153,1773832747698,1000.0,0.00030137,120]
[408528154,1773832754652,1000.0,0.00030137,120]
[408528155,1773832760709,1000.0,0.00030137,120]
[408528156,1773832767585,1000.0,0.00030137,120]
[408528157,1773832774291,1000.0,0.00030137,120]
[408528158,1773832781854,1000.0,0.00030137,120]
[408528159,1773832788212,1000.0,0.00030137,120]
[408528160,1773832795201,1000.0,0.00030137,120]
[408528161,1773832800959,1000.0,0.00030137,120]
[408528162,1773832808181,1000.0,0.00030137,120]
[408528163,1773832814907,173.52,0.00012994,2]
[408528164,1773832815931,500.0,0.00030137,120]
[408528165,1773832822425,500.0,0.00030137,120]
[408528166,1773832828864,500.0,0.00030137,120]
[408528167,1773832835469,500.0,0.00030137,120]
[408528168,1773832841444,500.0,0.00030137,120]
[408528169,1773832848007,500.0,0.00030137,120]
[408528170,1773832855934,538.4,0.00030137,120]
[408528175,1773832978449,210.56799589,0.00030137,120]
[408528176,1773833001879,-173.52,0.0001516,2]
[408528177,1773833001906,-328.64483217,0.00015359,2]
[408528178,1773833001934,-1852.42,0.00015557,2]
[408528179,1773833005102,-1016.23,0.000158,2]
[408528180,1773833010941,-2032.46,0.000158,2]
[408528181,1773833011033,-2633.45086103,0.000158,2]
[408528183,1773833177842,2660.5431877,0.0001199,2]
[408528184,1773833251521,3122.0,0.00030137,120]
[408528185,1773833285378,1000.0,0.00030137,120]
[408528186,1773833318151,-3301.63913897,0.000158,2]
[408528187,1773833318182,-1584.75550853,0.00015971,2]
[408528189,1773833328031,393.55111866,7.888e-05,2]
[408528190,1773833332247,-227.220705,0.00015971,2]
[408528191,1773833332281,-3294.5304721,0.00015973,2]
[408528192,1773833332310,-1200.0,0.0001598,2]
[408528193,1773833332337,-256.5076458,0.0001598,2]
[408528194,1773833347985,10000.01,9.5e-05,3]
[408528195,1773833348007,10000.01,9.5e-05,3]
[408528196,1773833348028,10000.01,9.5e-05,3]
[408528197,1773833348050,10000.01,9.5e-05,3]
[408528198,1773833348073,10000.01,9.5e-05,3]
[408528199,1773833348093,10000.01,9.5e-05,3]
[408528200,1773833348115,10000.01,9.5e-05,3]
[408528201,1773833348137,10000.01,9.5e-05,3]
[408528202,1773833348159,10000.01,9.5e-05,3]
[408528203,1773833348181,10000.01,9.5e-05,3]
[408528204,1773833348208,254867.35888006,9.5e-05,3]
[408528205,1773833350610,1492.18,0.00013461,2]
[408528206,1773833354489,200.0,0.000126,2]
[408528207,1773833416100,580.0,0.0003013,120]
[408528208,1773833424460,200.0,0.000124,2]
[408528224,1773833431486,-5392.42622607,0.00015957,2]
[408528226,1773833431498,-9082.31868426,0.00015957,2]
[408528228,1773833431510,-20425.57998967,0.00015957,2]
[408528229,1773833431520,-300.0,0.00015999,2]
[408528231,1773833431530,-1200.0,0.00015999,2]
[408528232,1773833431541,-300.0,0.00015999,2]
[408528233,1773833431551,-14563.96615335,0.00016,4]
[408528234,1773833431563,-7693.87,0.00016048,2]
[408528235,1773833431572,-200.0,0.00016048,2]
[408528236,1773833431582,-151.0,0.00016048,2]
[408528237,1773833431592,-234.76486537,0.00016048,2]
[408528238,1773833431601,-500.0,0.00016057,2]
[408528239,1773833431611,-500.0,0.00016057,2]
[408528240,1773833431621,-500.0,0.00016057,2]
[408528241,1773833431630,-500.0,0.00016057,2]
[408528242,1773833431640,-500.0,0.00016057,2]
[408528243,1773833431649,-274.9282927,0.00016057,2]
[408528244,1773833431659,-500.0,0.00016057,2]
[408528246,1773833431669,-300.0,0.00016057,2]
[408528248,1773833431678,-2000.0,0.00016071,2]
[408528249,1773833431687,-1681.1122,0.00016081,2]
[408528250,1773833431697,-7693.87,0.00016106,2]
[408528251,1773833431707,-27476.37,0.00016116,2]
[408528253,1773833431716,-150.0,0.00016126,2]
[408528254,1773833431725,-200.0,0.00016162,2]
[408528255,1773833431735,-154.18560746,0.0001618,2]
[408528256,1773833431744,-3294.53047207,0.00016187,2]
[408528257,1773833431754,-795.2256018,0.00016247,2]
[408528258,1773833431770,-474.202935,0.00016247,2]
[408528259,1773833431813,-542.54767666,0.00016247,2]
[408528260,1773833431822,-979.16666667,0.00016272,2]
[408528261,1773833431832,-2614.69686543,0.00016401,2]
[408528262,1773833431843,-265.84703492,0.00016401,2]
[408528263,1773833431858,-413.98657172,0.00016401,2]
[408528264,1773833431869,-200.0,0.00016413,2]
[408528265,1773833431881,-1686.01342827,0.00016522,2]
[408528279,1773833437557,-125.96278519,0.00016522,2]
[408528280,1773833437567,-707.69894272,0.00016529,2]
[408528281,1773833437578,-500.0,0.00016529,2]
[408528282,1773833437612,-792.30105728,0.00016529,2]
[408528283,1773833437622,-278.06359386,0.00016573,2]
[408528284,1773833437724,-450.84640614,0.00016573,2]
[408528285,1773833437733,-1260.0,0.00016579,2]
[408528286,1773833437743,-923.0,0.00016579,2]
[408528287,1773833437752,-1215.0,0.00016579,2]
[408528288,1773833437761,-2465.0,0.00016579,2]
[408528289,1773833437770,-1344.0,0.00016579,2]
[408528290,1773833437779,-723.31160689,0.00016615,2]
[408528291,1773833437790,-899.50830872,0.00016615,2]
[408528292,1773833437802,-1671.71055646,0.00016615,2]
[408528293,1773833437812,-166.78,0.00016712,2]
[408528294,1773833437821,-235.90930062,0.00016798,2]
[408528295,1773833437833,-1576.06691284,0.00016798,2]
[408528296,1773833437842,-53.31392689,0.00016829,2]
[408528297,1773833437853,-1366.252633,0.00016829,2]
[408528298,1773833437864,-1874.96391218,0.00016829,2]
[408528299,1773833437873,-1477.5337051,0.00016854,2]
[408528300,1773833437887,-181.08010149,0.00016854,2]
[408528301,1773833437895,-1850.51613742,0.00017044,2]
[408528302,1773833437907,-711.90106001,0.00017044,2]
[408528310,1773833439749,-262.632924,0.00017044,2]
[408528311,1773833440238,-469.48035064,0.00017044,2]
[408528312,1773833440248,-166.76,0.00017045,2]
[408528313,1773833440257,-1811.97621346,0.00017073,2]
[408528314,1773833440266,-504.18669053,0.000171,6]
[408528322,1773833442603,-1409.67,0.00016622,2]
[408528323,1773833442615,-2102.33,0.00016622,2]
[408528324,1773833442630,-385.40803941,0.000171,6]
[408528330,1773833445619,-10.40527006,0.000171,6]
[408528331,1773833445629,-1800.0,0.000172,6]
[408528332,1773833445638,-3294.53047207,0.00017258,2]
[408528333,1773833445648,-2700.0,0.000173,6]
[408528334,1773833445657,-173.52,0.00017326,2]
[408528335,1773833445667,-1811.97621346,0.00017349,2]
[408528336,1773833445677,-150.0,0.00017351,2]
[408528337,1773833445686,-2302.82799839,0.0001738,2]
[408528338,1773833445700,-197.17200161,0.0001738,2]
[408528339,1773833445709,-2500.0,0.0001738,2]
[408528340,1773833445718,-1911.79754097,0.0001738,2]
[408528341,1773833445730,-588.20245903,0.0001738,2]
[408528342,1773833445739,-2500.0,0.0001738,2]
[408528343,1773833445749,-2500.0,0.0001738,2]
[408528344,1773833445758,-250.0,0.0001738,2]
[408528345,1773833445769,-5000.0,0.0001738,2]
[408528346,1773833445778,-500.0,0.0001738,2]
[408528347,1773833445788,-500.0,0.0001738,2]
[408528349,1773833445797,-500.0,0.0001738,2]
[408528350,1773833445808,-500.0,0.0001738,2]
[408528351,1773833445817,-500.0,0.0001738,2]
[408528352,1773833445827,-500.0,0.0001738,2]
[408528353,1773833445836,-500.0,0.0001738,2]
[408528354,1773833445847,-500.0,0.0001738,2]
[408528355,1773833445857,-500.0,0.0001738,2]
[408528356,1773833445866,-749.0,0.0001738,2]
[408528357,1773833445875,-500.0,0.0001738,2]
[408528358,1773833445888,-500.0,0.0001738,2]
[408528359,1773833445897,-500.0,0.0001738,2]
[408528360,1773833445908,-500.0,0.0001738,2]
[408528361,1773833445919,-500.0,0.0001738,2]
[408528362,1773833445930,-500.0,0.0001738,2]
[408528363,1773833445941,-500.0,0.0001738,2]
[408528364,1773833445955,-500.0,0.0001738,2]
[408528365,1773833445964,-500.0,0.0001738,2]
[408528366,1773833445973,-500.0,0.0001738,2]
[408528367,1773833445984,-500.0,0.0001738,2]
[408528368,1773833445995,-500.0,0.0001738,2]
[408528369,1773833446005,-500.0,0.0001738,2]
[408528370,1773833446015,-500.0,0.0001738,2]
[408528371,1773833446024,-500.0,0.0001738,2]
[408528372,1773833446033,-500.0,0.0001738,2]
[408528373,1773833446043,-500.0,0.0001738,2]
[408528374,1773833446052,-500.0,0.0001738,2]
[408528375,1773833446062,-500.0,0.0001738,2]
[408528376,1773833446071,-500.0,0.0001738,2]
[408528378,1773833446082,-500.0,0.0001738,2]
[408528379,1773833446096,-500.0,0.0001738,2]
[408528380,1773833446111,-500.0,0.0001738,2]
[408528381,1773833446120,-500.0,0.0001738,2]
[408528382,1773833446130,-500.0,0.0001738,2]
[408528383,1773833446140,-500.0,0.0001738,2]
[408528384,1773833446149,-500.0,0.0001738,2]
[408528385,1773833446159,-500.0,0.0001738,2]
[408528386,1773833446168,-500.0,0.0001738,2]
[408528387,1773833446178,-500.0,0.0001738,2]
[408528388,1773833446188,-500.0,0.0001738,2]
[408528389,1773833446198,-500.0,0.0001738,2]
[408528390,1773833446207,-500.0,0.0001738,2]
[408528391,1773833446217,-500.0,0.0001738,2]
[408528392,1773833446226,-786.0,0.0001738,2]
[408528393,1773833446236,-1517.72,0.00017399,2]
[408528394,1773833446246,-35006.81124344,0.000174,2]
[408528395,1773833446259,-9000.0,0.000174,2]
[408528396,1773833446396,-9253.20065759,0.000174,2]
[408528397,1773833446408,-1268.7691996,0.000174,2]
[408528398,1773833446420,-605.31448318,0.000174,2]
[408528399,1773833446432,-475.5661011,0.000174,2]
[408528400,1773833446461,-7309.09235372,0.000174,2]
[408528401,1773833650163,4413.93405282,0.00030137,120]
[408528402,1773833740451,150.0,0.00030136,120]
[408528405,1773834034970,1020.0,0.0003013,120]
[408528406,1773834041814,1000.0,0.0003013,120]
[408528407,1773834046350,1000.0,0.0003013,120]
[408528408,1773834261935,166.66,0.00015297,2]
[408528409,1773834262179,166.66,0.00015619,2]
[408528410,1773834262386,166.66,0.00015941,2]
[408528414,1773834493135,-2202.75,0.00015945,2]
[408528415,1773834493161,-1000.0,0.00015958,2]
[408528416,1773834493189,-162.82,0.00015984,2]
[408528417,1773834493217,-310.54751259,0.00016,2]
[408528418,1773834493247,-1214.176,0.00016,2]
[408528419,1773834493274,-69.42297482,0.00016054,2]
[408528425,1773834504709,-80.57702518,0.00016054,2]
[408528426,1773834504736,-500.0,0.00016057,2]
[408528427,1773834504767,-500.0,0.00016057,2]
[408528428,1773834504793,-500.0,0.00016057,2]
[408528429,1773834504820,-500.0,0.00016057,2]
[408528430,1773834504848,-500.0,0.00016057,2]
[408528431,1773834504875,-500.0,0.00016057,2]
[408528432,1773834504903,-500.0,0.00016057,2]
[408528433,1773834504929,-504.83287132,0.00016057,2]
[408528434,1773834504957,-500.0,0.00016057,2]
[408528435,1773834504988,-329.190207,0.00016057,2]
[408528472,1773834637110,-404.94,0.0001602,2]
[408528474,1773834637119,-1865.06000004,0.00016057,2]
[408528475,1773834637164,-662.1323983,0.00016057,2]
[408528476,1773834637218,-2241.59999602,0.00016057,2]
[408528496,1773834637655,-2220.73543755,0.00016057,2]
[408528497,1773834637707,-3192.63913683,0.00016057,2]
[408528498,1773834637721,-8211.57219866,0.00016057,2]
[408528499,1773834637736,-377.32733604,0.00016057,2]
[408528500,1773834637747,-8302.50061559,0.00016057,2]
[408528501,1773834637758,-3987.78036294,0.00016057,2]
[408528502,1773834637770,-7155.22421026,0.00016057,2]
[408528503,1773834637780,-5376.87077125,0.00016057,2]
[408528504,1773834637792,-59754.46269557,0.00016057,2]
[408528505,1773834637801,-170.809793,0.00016057,2]
[408528506,1773834637811,-502.2327225,0.00016057,2]
[408528507,1773834637820,-590.78334766,0.00016057,2]
[408528508,1773834637830,-500.0,0.00016057,2]
[408528509,1773834637839,-500.0,0.00016057,2]
[408528510,1773834637848,-500.0,0.00016057,2]
[408528511,1773834637858,-500.0,0.00016057,2]
[408528512,1773834637868,-714.56,0.00016137,2]
[408528513,1773834637877,-500.0,0.00016178,2]
[408528514,1773834637887,-21167.15144139,0.0001623,2]
[408528515,1773834637919,-340.11748388,0.0001623,2]
[408528522,1773834637977,-370.46067649,0.0001623,2]
[408528524,1773834637991,-348.4000003,0.0001623,2]
[408528527,1773834638004,-1406.5,0.0001623,2]
[408528569,1773834639824,-1096.199,0.0001623,2]
[408528570,1773834640035,-1137.5,0.0001623,2]
[408528571,1773834640088,-116.62389794,0.0001623,2]
[408528572,1773834640098,-160.0,0.00016261,2]
[408528573,1773834640108,-979.16666667,0.00016261,2]
[408528574,1773834640118,-166.66,0.00016263,2]
[408528575,1773834640128,-5878.88791865,0.0001633,2]
[408528577,1773834640339,-137.95703284,0.0001633,2]
[408528591,1773834642832,-2305.75376585,0.0001633,2]
[408528592,1773834642888,-867.92446097,0.0001633,2]
[408528593,1773834642900,-400.80810781,0.0001633,2]
[408528594,1773834642913,-9867.12871388,0.0001633,2]
[408528595,1773834642923,-3240.0,0.00016374,2]
[408528596,1773834642937,-404.94,0.00016421,2]
[408528597,1773834642955,-276.55048995,0.00016498,2]
[408528598,1773834642978,-166.66,0.00016585,2]
[408528599,1773834643005,-620.0,0.00016709,2]
[408528600,1773834643031,-1753.597,0.00016709,2]
[408528601,1773834643055,-1044.0,0.00016709,2]
[408528602,1773834643065,-1207.588,0.00016709,2]
[408528603,1773834643080,-923.0,0.00016709,2]
[408528604,1773834643090,-1345.766,0.00016709,2]
[408528605,1773834643100,-2465.0,0.00016709,2]
[408528607,1773834643110,-414.915,0.00016709,2]
[408528608,1773834643120,-3184.32712507,0.00016735,2]
[408528609,1773834643131,-637.46,0.00016739,2]